fUSD/lending_fUSD_20240501
["ID","MTS","AMOUNT","RATE_DAILY","PERIOD"]
[325170567,1714547448656,-500.0,0.00012326,2]
[325170570,1714547448666,-500.0,0.00012326,2]
[325170572,1714547448676,-896.96,0.00012326,2]
[325170575,1714547448691,-1193.01,0.00012326,2]
[325170578,1714547448702,-1146.11,0.00012326,2]
[325170581,1714547448712,-500.0,0.00012326,2]
[325170585,1714547448723,-1496.13,0.00012326,2]
[325170587,1714547448733,-500.0,0.00012326,2]
[325170589,1714547448743,-558.34,0.00012326,2]
[325170591,1714547448754,-1605.7,0.00012326,2]
[325170593,1714547448764,-500.0,0.00012326,2]
[325170595,1714547448774,-573.69,0.00012326,2]
[325170597,1714547448784,-1285.89,0.00012326,2]
[325170599,1714547448794,-553.21,0.00012326,2]
[325170601,1714547448804,-500.0,0.00012326,2]
[325170603,1714547448816,-500.0,0.00012326,2]
[325170606,1714547448825,-500.0,0.00012326,2]
[325170608,1714547448835,-500.0,0.00012326,2]
[325170610,1714547448845,-806.94,0.00012326,2]
[325170612,1714547448855,-1127.5,0.00012326,2]
[325170614,1714547448865,-674.62,0.00012326,2]
[325170616,1714547448874,-550.31,0.00012326,2]
[325170618,1714547448884,-1223.66,0.00012326,2]
[325170620,1714547448893,-5405.0,0.00012326,2]
[325170622,1714547448903,-5754.83,0.00012326,2]
[325170624,1714547448912,-741.85,0.00012326,2]
[325170626,1714547448922,-500.0,0.00012326,2]
[325170628,1714547448931,-581.98,0.00012326,2]
[325170630,1714547448943,-500.0,0.00012326,2]
[325170632,1714547448953,-500.0,0.00012326,2]
[325170634,1714547448962,-500.0,0.00012326,2]
[325170636,1714547448971,-500.0,0.00012326,2]
[325170638,1714547448980,-500.0,0.00012326,2]
[325170640,1714547448989,-500.0,0.00012327,2]
[325170642,1714547448999,-500.0,0.00012327,2]
[325170644,1714547449008,-500.0,0.00012327,2]
[325170646,1714547449017,-500.0,0.00012327,2]
[325170648,1714547449026,-500.0,0.00012327,2]
[325170650,1714547449036,-4737.29,0.00012327,2]
[325170652,1714547449045,-500.0,0.00012327,2]
[325170654,1714547449054,-1455.81,0.00012327,2]
[325170656,1714547449064,-500.0,0.00012327,2]
[325170658,1714547449074,-500.0,0.00012327,2]
[325170660,1714547449084,-500.0,0.00012327,2]
[325170662,1714547449094,-500.0,0.00012327,2]
[325170664,1714547449104,-2386.64,0.00012327,2]
[325170666,1714547449114,-528.66,0.00012327,2]
[325170668,1714547449124,-500.0,0.00012327,2]
[325170670,1714547449134,-500.0,0.00012327,2]
[325170672,1714547449145,-500.0,0.00012327,2]
[325170674,1714547449155,-184.88432704,0.00012327,2]
[325170677,1714547449165,-500.0,0.00012327,2]
[325170680,1714547449176,-505.85023868,0.00012327,2]
[325170683,1714547449185,-2877.88,0.00012327,2]
[325170685,1714547449199,-500.0,0.00012327,2]
[325170687,1714547449209,-893.82,0.00012327,2]
[325170689,1714547449219,-500.0,0.00012327,2]
[325170692,1714547449228,-500.0,0.00012327,2]
[325170695,1714547449238,-5856.37,0.00012327,2]
[325170697,1714547449248,-500.0,0.00012327,2]
[325170699,1714547449258,-500.0,0.00012327,2]
[325170701,1714547449268,-500.0,0.00012327,2]
[325170703,1714547449277,-525.01,0.00012327,2]
[325170705,1714547449287,-500.0,0.00012327,2]
[325170707,1714547449296,-500.0,0.00012327,2]
[325170709,1714547449306,-500.0,0.00012327,2]
[325170711,1714547449316,-865.84,0.00012327,2]
[325170713,1714547449325,-632.81,0.00012327,2]
[325170715,1714547449335,-4257.14,0.00012327,2]
[325170717,1714547449344,-500.0,0.00012327,2]
[325170719,1714547449353,-534.82,0.00012327,2]
[325170721,1714547449363,-500.0,0.00012327,2]
[325170723,1714547449372,-500.0,0.00012327,2]
[325170725,1714547449382,-1007.42,0.00012327,2]
[325170727,1714547449391,-642.59,0.00012327,2]
[325170729,1714547449400,-500.0,0.00012327,2]
[325170731,1714547449410,-766.92,0.00012327,2]
[325170733,1714547449420,-500.0,0.00012327,2]
[325170735,1714547449429,-500.0,0.00012327,2]
[325170737,1714547449442,-500.0,0.00012327,2]
[325170739,1714547449452,-500.0,0.00012327,2]
[325170741,1714547449461,-616.19,0.00012327,2]
[325170743,1714547449470,-535.1,0.00012328,2]
[325170745,1714547449480,-747.9,0.00012328,2]
[325170747,1714547449489,-500.0,0.00012328,2]
[325170749,1714547449498,-500.0,0.00012328,2]
[325170751,1714547449508,-814.02,0.00012328,2]
[325170753,1714547449517,-174.19,0.00012352,2]
[325170755,1714547449527,-5000.0,0.000124,2]
[325170757,1714547449536,-2200.0,0.000124,4]
[325170759,1714547449547,-400.0,0.000125,4]
[325170761,1714547449556,-500.0,0.00012597,2]
[325170763,1714547449566,-500.0,0.000126,2]
[325170765,1714547449575,-592.91,0.000126,2]
[325170768,1714547449584,-400.0,0.000126,4]
[325170770,1714547449593,-500.0,0.000126,2]
[325170771,1714547449607,-500.0,0.000126,2]
[325170773,1714547449616,-578.76,0.000126,2]
[325170776,1714547449626,-500.0,0.000126,2]
[325170778,1714547449636,-1503.61,0.000126,2]
[325170780,1714547449647,-500.0,0.000126,2]
[325170782,1714547449656,-500.0,0.000126,2]
[325170784,1714547449666,-896.96,0.000126,2]
[325170786,1714547449676,-1193.01,0.000126,2]
[325170788,1714547449685,-1146.11,0.000126,2]
[325170790,1714547449698,-500.0,0.000126,2]
[325170792,1714547449707,-1496.13,0.000126,2]
[325170794,1714547449718,-500.0,0.000126,2]
[325170796,1714547449728,-558.34,0.000126,2]
[325170798,1714547449738,-1605.7,0.000126,2]
[325170800,1714547449747,-500.0,0.000126,2]
[325170802,1714547449757,-573.69,0.000126,2]
[325170804,1714547449767,-1285.89,0.000126,2]
[325170806,1714547449777,-553.21,0.000126,2]
[325170808,1714547449786,-500.0,0.000126,2]
[325170810,1714547449796,-500.0,0.000126,2]
[325170812,1714547449806,-500.0,0.000126,2]
[325170814,1714547449816,-500.0,0.000126,2]
[325170816,1714547449826,-806.94,0.000126,2]
[325170819,1714547449836,-1127.5,0.000126,2]
[325170821,1714547449845,-674.62,0.000126,2]
[325170823,1714547449855,-550.31,0.000126,2]
[325170825,1714547449865,-1223.66,0.000126,2]
[325170827,1714547449875,-5405.0,0.000126,2]
[325170829,1714547449884,-5754.83,0.000126,2]
[325170832,1714547449893,-741.85,0.000126,2]
[325170835,1714547449902,-500.0,0.000126,2]
[325170837,1714547449912,-581.98,0.000126,2]
[325170839,1714547449922,-500.0,0.000126,2]
[325170841,1714547449931,-500.0,0.000126,2]
[325170843,1714547449944,-500.0,0.000126,2]
[325170845,1714547449954,-500.0,0.000126,2]
[325170847,1714547449963,-500.0,0.000126,2]
[325170848,1714547449972,-500.0,0.00012601,2]
[325170849,1714547449982,-500.0,0.00012601,2]
[325170850,1714547449991,-500.0,0.00012601,2]
[325170851,1714547450000,-232.5271577,0.00012601,2]
[325170852,1714547450009,-500.0,0.00012601,2]
[325170853,1714547450019,-4737.29,0.00012601,2]
[325170854,1714547450028,-500.0,0.00012601,2]
[325170855,1714547450037,-1455.81,0.00012601,2]
[325170857,1714547450046,-500.0,0.00012601,2]
[325170858,1714547450056,-500.0,0.00012601,2]
[325170860,1714547450066,-500.0,0.00012601,2]
[325170862,1714547450075,-500.0,0.00012601,2]
[325170864,1714547450085,-2386.64,0.00012601,2]
[325170866,1714547450094,-528.66,0.00012601,2]
[325170868,1714547450103,-500.0,0.00012601,2]
[325170870,1714547450113,-500.0,0.00012601,2]
[325170873,1714547450122,-500.0,0.00012601,2]
[325170875,1714547450131,-500.0,0.00012601,2]
[325170877,1714547450140,-2877.88,0.00012601,2]
[325170879,1714547450150,-500.0,0.00012601,2]
[325170881,1714547450159,-893.82,0.00012601,2]
[325170883,1714547450169,-500.0,0.00012601,2]
[325170885,1714547450178,-500.0,0.00012601,2]
[325170887,1714547450190,-5856.37,0.00012601,2]
[325170889,1714547450199,-500.0,0.00012601,2]
[325170890,1714547450208,-500.0,0.00012601,2]
[325170893,1714547450218,-500.0,0.00012601,2]
[325170895,1714547450228,-525.01,0.00012601,2]
[325170897,1714547450237,-500.0,0.00012601,2]
[325170898,1714547450247,-500.0,0.00012601,2]
[325170901,1714547450256,-500.0,0.00012601,2]
[325170903,1714547450266,-865.84,0.00012601,2]
[325170905,1714547450276,-632.81,0.00012601,2]
[325170907,1714547450286,-4257.14,0.00012601,2]
[325170909,1714547450295,-500.0,0.00012601,2]
[325170911,1714547450304,-534.82,0.00012601,2]
[325170913,1714547450314,-500.0,0.00012601,2]
[325170914,1714547450323,-500.0,0.00012601,2]
[325170917,1714547450333,-1007.42,0.00012601,2]
[325170918,1714547450342,-642.59,0.00012601,2]
[325170920,1714547450351,-500.0,0.00012601,2]
[325170922,1714547450360,-766.92,0.00012601,2]
[325170924,1714547450370,-500.0,0.00012601,2]
[325170926,1714547450379,-500.0,0.00012601,2]
[325170928,1714547450388,-500.0,0.00012601,2]
[325170930,1714547450397,-500.0,0.00012601,2]
[325170932,1714547450407,-616.19,0.00012601,2]
[325170934,1714547450416,-747.9,0.00012602,2]
[325170936,1714547450425,-500.0,0.00012602,2]
[325170938,1714547450435,-500.0,0.00012602,2]
[325170941,1714547450447,-814.02,0.00012602,2]
[325170943,1714547450456,-310.11,0.00012629,2]
[325170945,1714547450465,-1000.0,0.00012697,2]
[325170951,1714547450519,-400.0,0.000127,4]
[325170953,1714547450528,-155.0,0.000127,2]
[325170955,1714547450538,-150.0,0.00012727,2]
[325170957,1714547450547,-150.0,0.00012729,2]
[325170959,1714547450556,-150.0,0.00012737,2]
[325170961,1714547450566,-1377.14574965,0.00012743,2]
[325170963,1714547450575,-150.0,0.00012755,2]
[325170965,1714547450584,-150.0,0.00012755,2]
[325170967,1714547450593,-150.0,0.00012762,2]
[325170969,1714547450604,-3496.71037598,0.00012769,2]
[325170971,1714547450614,-150.0,0.0001279,2]
[325170973,1714547450623,-300.72609229,0.00012793,2]
[325170975,1714547450633,-178.69867596,0.00012794,2]
[325170977,1714547450645,-1000.0,0.00012797,2]
[325170979,1714547450654,-500.0,0.00012797,2]
[325170981,1714547450663,-17433.93905374,0.000128,2]
[325170983,1714547450672,-400.0,0.000128,4]
[325170985,1714547450683,-150.0,0.00012807,2]
[325170987,1714547450696,-150.0,0.00012808,2]
[325170989,1714547450705,-188.7325,0.00012811,2]
[325170991,1714547450716,-150.0,0.00012821,2]
[325170993,1714547450725,-150.0,0.00012834,2]
[325170995,1714547450735,-346.16050584,0.00012837,2]
[325170997,1714547450744,-150.0,0.00012838,2]
[325170999,1714547450753,-1000.0,0.00012846,2]
[325171001,1714547450763,-150.0,0.00012858,2]
[325171003,1714547450773,-150.0,0.00012859,2]
[325171005,1714547450782,-150.0,0.00012859,2]
[325171007,1714547450792,-150.0,0.00012859,2]
[325171009,1714547450802,-992.0001,0.00012859,2]
[325171010,1714547450811,-156.7325605,0.00012869,2]
[325171012,1714547450821,-1634.876216,0.00012871,2]
[325171013,1714547450830,-150.0,0.00012872,2]
[325171015,1714547450839,-700.42956,0.00012872,2]
[325171017,1714547450848,-12051.58127009,0.00012873,2]
[325171018,1714547450858,-162.41008324,0.00012873,2]
[325171020,1714547450867,-317.6353575,0.00012874,2]
[325171022,1714547450882,-500.0,0.00012874,2]
[325171024,1714547450893,-592.91,0.00012874,2]
[325171025,1714547450904,-500.0,0.00012874,2]
[325171027,1714547450915,-500.0,0.00012874,2]
[325171028,1714547450926,-578.76,0.00012874,2]
[325171030,1714547450936,-500.0,0.00012874,2]
[325171032,1714547450948,-1503.61,0.00012874,2]
[325171033,1714547450959,-500.0,0.00012874,2]
[325171035,1714547450971,-500.0,0.00012874,2]
[325171037,1714547450982,-896.96,0.00012874,2]
[325171038,1714547450993,-1193.01,0.00012874,2]
[325171040,1714547451003,-1146.11,0.00012874,2]
[325171042,1714547451014,-500.0,0.00012874,2]
[325171044,1714547451024,-1496.13,0.00012874,2]
[325171045,1714547451034,-500.0,0.00012874,2]
[325171047,1714547451043,-558.34,0.00012874,2]
[325171048,1714547451054,-1605.7,0.00012874,2]
[325171050,1714547451063,-500.0,0.00012874,2]
[325171052,1714547451073,-573.69,0.00012874,2]
[325171053,1714547451082,-553.21,0.00012874,2]
[325171055,1714547451092,-1285.89,0.00012874,2]
[325171057,1714547451102,-500.0,0.00012874,2]
[325171058,1714547451112,-500.0,0.00012874,2]
[325171060,1714547451121,-500.0,0.00012874,2]
[325171062,1714547451131,-500.0,0.00012874,2]
[325171063,1714547451140,-806.94,0.00012874,2]
[325171065,1714547451150,-1127.5,0.00012874,2]
[325171067,1714547451159,-674.62,0.00012874,2]
[325171069,1714547451169,-550.31,0.00012874,2]
[325171070,1714547451178,-1223.66,0.00012874,2]
[325171072,1714547451190,-5405.0,0.00012874,2]
[325171074,1714547451199,-5754.83,0.00012874,2]
[325171076,1714547451209,-741.85,0.00012874,2]
[325171077,1714547451219,-208.62073299,0.00012874,2]
[325171079,1714547451228,-581.98,0.00012874,2]
[325171081,1714547451238,-500.0,0.00012874,2]
[325171083,1714547451249,-500.0,0.00012874,2]
[325171084,1714547451259,-500.0,0.00012874,2]
[325171086,1714547451268,-500.0,0.00012874,2]
[325171088,1714547451278,-500.0,0.00012874,2]
[325171089,1714547451288,-300.0,0.00012875,2]
[325171091,1714547451297,-500.0,0.00012875,2]
[325171093,1714547451307,-500.0,0.00012875,2]
[325171095,1714547451317,-500.0,0.00012875,2]
[325171096,1714547451328,-150.0,0.00012875,2]
[325171098,1714547451337,-500.0,0.00012875,2]
[325171100,1714547451347,-4737.29,0.00012875,2]
[325171102,1714547451357,-500.0,0.00012875,2]
[325171104,1714547451367,-1455.81,0.00012875,2]
[325171105,1714547451377,-500.0,0.00012875,2]
[325171107,1714547451386,-500.0,0.00012875,2]
[325171109,1714547451396,-500.0,0.00012875,2]
[325171111,1714547451407,-500.0,0.00012875,2]
[325171112,1714547451417,-2386.64,0.00012875,2]
[325171114,1714547451426,-528.66,0.00012875,2]
[325171116,1714547451436,-500.0,0.00012875,2]
[325171118,1714547451449,-500.0,0.00012875,2]
[325171119,1714547451459,-500.0,0.00012875,2]
[325171121,1714547451470,-500.0,0.00012875,2]
[325171123,1714547451480,-2877.88,0.00012875,2]
[325171125,1714547451489,-500.0,0.00012875,2]
[325171126,1714547451499,-893.82,0.00012875,2]
[325171128,1714547451509,-500.0,0.00012875,2]
[325171130,1714547451519,-500.0,0.00012875,2]
[325171132,1714547451530,-5856.37,0.00012875,2]
[325171134,1714547451540,-500.0,0.00012875,2]
[325171135,1714547451549,-500.0,0.00012875,2]
[325171137,1714547451559,-561.44565224,0.00012875,2]
[325171139,1714547451569,-525.01,0.00012875,2]
[325171141,1714547451579,-500.0,0.00012875,2]
[325171143,1714547451588,-500.0,0.00012875,2]
[325171144,1714547451597,-500.0,0.00012875,2]
[325171146,1714547451614,-865.84,0.00012875,2]
[325171148,1714547451623,-632.81,0.00012875,2]
[325171150,1714547451633,-4257.14,0.00012875,2]
[325171151,1714547451642,-500.0,0.00012875,2]
[325171153,1714547451653,-534.82,0.00012875,2]
[325171155,1714547451663,-500.0,0.00012875,2]
[325171157,1714547451672,-500.0,0.00012875,2]
[325171158,1714547451681,-1007.42,0.00012875,2]
[325171160,1714547451695,-642.59,0.00012875,2]
[325171162,1714547451704,-500.0,0.00012875,2]
[325171164,1714547451714,-766.92,0.00012875,2]
[325171166,1714547451725,-500.0,0.00012875,2]
[325171168,1714547451735,-500.0,0.00012875,2]
[325171170,1714547451745,-500.0,0.00012875,2]
[325171172,1714547451754,-500.0,0.00012875,2]
[325171174,1714547451763,-616.19,0.00012875,2]
[325171176,1714547451772,-747.9,0.00012876,2]
[325171178,1714547451781,-500.0,0.00012876,2]
[325171180,1714547451791,-500.0,0.00012876,2]
[325171182,1714547451800,-814.02,0.00012876,2]
[325171184,1714547451810,-1000.0,0.00012877,2]
[325171186,1714547451820,-1000.0,0.00012877,2]
[325171188,1714547451828,-1000.0,0.00012877,2]
[325171189,1714547451837,-1000.0,0.00012877,2]
[325171190,1714547451847,-1000.0,0.00012877,2]
[325171191,1714547451856,-1000.0,0.00012877,2]
[325171192,1714547451865,-1000.0,0.00012877,2]
[325171193,1714547451875,-1000.0,0.00012877,2]
[325171194,1714547451883,-1000.0,0.00012877,2]
[325171195,1714547451892,-1000.0,0.00012877,2]
[325171196,1714547451901,-1000.0,0.00012877,2]
[325171197,1714547451910,-1000.0,0.00012877,2]
[325171198,1714547451919,-1000.0,0.00012877,2]
[325171199,1714547451928,-1000.0,0.00012877,2]
[325171200,1714547451940,-1000.0,0.00012877,2]
[325171201,1714547451951,-1000.0,0.00012877,2]
[325171202,1714547451960,-1000.0,0.00012877,2]
[325171203,1714547451970,-1000.0,0.00012877,2]
[325171204,1714547451979,-1000.0,0.00012877,2]
[325171205,1714547451988,-1000.0,0.00012877,2]
[325171207,1714547451997,-1000.0,0.00012877,2]
[325171209,1714547452008,-1000.0,0.00012877,2]
[325171211,1714547452018,-1000.0,0.00012877,2]
[325171213,1714547452028,-1000.0,0.00012877,2]
[325171215,1714547452037,-1000.0,0.00012877,2]
[325171217,1714547452046,-1000.0,0.00012877,2]
[325171218,1714547452056,-1000.0,0.00012877,2]
[325171221,1714547452066,-1000.0,0.00012877,2]
[325171222,1714547452075,-1000.0,0.00012877,2]
[325171225,1714547452085,-1000.0,0.00012877,2]
[325171226,1714547452096,-1000.0,0.00012877,2]
[325171229,1714547452106,-1000.0,0.00012877,2]
[325171230,1714547452115,-1000.0,0.00012877,2]
[325171232,1714547452125,-1000.0,0.00012877,2]
[325171234,1714547452135,-1000.0,0.00012877,2]
[325171236,1714547452144,-1000.0,0.00012877,2]
[325171238,1714547452153,-1000.0,0.00012877,2]
[325171240,1714547452163,-1000.0,0.00012877,2]
[325171243,1714547452172,-1000.0,0.00012877,2]
[325171245,1714547452181,-1000.0,0.00012877,2]
[325171246,1714547452195,-1000.0,0.00012877,2]
[325171248,1714547452204,-1000.0,0.00012877,2]
[325171251,1714547452219,-1000.0,0.00012877,2]
[325171253,1714547452233,-1000.0,0.00012877,2]
[325171255,1714547452242,-1000.0,0.00012877,2]
[325171257,1714547452252,-1000.0,0.00012877,2]
[325171259,1714547452261,-1000.0,0.00012877,2]
[325171261,1714547452270,-1000.0,0.00012877,2]
[325171263,1714547452279,-1000.0,0.00012877,2]
[325171265,1714547452288,-1000.0,0.00012877,2]
[325171267,1714547452297,-1000.0,0.00012877,2]
[325171269,1714547452306,-1000.0,0.00012877,2]
[325171271,1714547452315,-1000.0,0.00012877,2]
[325171273,1714547452324,-1000.0,0.00012877,2]
[325171275,1714547452333,-1000.0,0.00012877,2]
[325171277,1714547452342,-1000.0,0.00012877,2]
[325171279,1714547452351,-1000.0,0.00012877,2]
[325171282,1714547452361,-1000.0,0.00012877,2]
[325171284,1714547452373,-1000.0,0.00012877,2]
[325171285,1714547452382,-1000.0,0.00012877,2]
[325171287,1714547452392,-1000.0,0.00012877,2]
[325171289,1714547452403,-1000.0,0.00012877,2]
[325171291,1714547452414,-1000.0,0.00012877,2]
[325171293,1714547452425,-1000.0,0.00012877,2]
[325171295,1714547452435,-1000.0,0.00012877,2]
[325171298,1714547452452,-1000.0,0.00012877,2]
[325171300,1714547452463,-1000.0,0.00012877,2]
[325171302,1714547452474,-1000.0,0.00012877,2]
[325171303,1714547452485,-1000.0,0.00012877,2]
[325171306,1714547452496,-1000.0,0.00012877,2]
[325171308,1714547452508,-1000.0,0.00012877,2]
[325171310,1714547452517,-1000.0,0.00012877,2]
[325171312,1714547452527,-1000.0,0.00012877,2]
[325171313,1714547452536,-1000.0,0.00012877,2]
[325171316,1714547452546,-1000.0,0.00012877,2]
[325171317,1714547452557,-1000.0,0.00012877,2]
[325171320,1714547452567,-1000.0,0.00012877,2]
[325171321,1714547452576,-1000.0,0.00012877,2]
[325171323,1714547452586,-1000.0,0.00012877,2]
[325171326,1714547452597,-1000.0,0.00012877,2]
[325171328,1714547452609,-1000.0,0.00012877,2]
[325171329,1714547452618,-1000.0,0.00012877,2]
[325171332,1714547452628,-1000.0,0.00012877,2]
[325171333,1714547452640,-1000.0,0.00012877,2]
[325171336,1714547452650,-1000.0,0.00012877,2]
[325171337,1714547452659,-991.0,0.00012877,2]
[325171339,1714547452669,-1120.0,0.00012878,2]
[325171341,1714547452679,-47636.29357801,0.00012878,2]
[325171343,1714547452693,-150.0,0.00012894,2]
[325171345,1714547452706,-1000.0,0.00012895,2]
[325171347,1714547452716,-500.0,0.00012895,2]
[325171349,1714547452726,-408.57913442,0.000129,2]
[325171351,1714547452736,-173.93618721,0.000129,2]
[325171353,1714547452746,-860.0,0.000129,4]
[325171355,1714547452756,-372.60051724,0.000129,2]
[325171356,1714547452766,-19432.1681238,0.000129,2]
[325171357,1714547452776,-150.0,0.00012902,2]
[325171358,1714547452786,-150.0,0.0001291,2]
[325171359,1714547452796,-193.49,0.00012929,2]
[325171360,1714547452807,-150.0,0.00012938,2]
[325171361,1714547452817,-150.0,0.0001296,2]
[325171362,1714547452827,-150.0,0.0001296,2]
[325171363,1714547452836,-2124.68523051,0.00012968,2]
[325171365,1714547452847,-150.0,0.0001297,2]
[325171367,1714547452857,-42375.14206299,0.0001298,2]
[325171369,1714547452867,-150.0,0.00012985,2]
[325171370,1714547452878,-2540.5956578,0.00012989,2]
[325171372,1714547452890,-2437.912108,0.00012989,2]
[325171374,1714547452900,-2335.2285582,0.00012989,2]
[325171376,1714547452911,-2232.5450085,0.00012989,2]
[325171378,1714547452924,-2129.8614587,0.00012989,2]
[325171379,1714547452934,-2027.1779089,0.00012989,2]
[325171380,1714547452947,-263.3591833,0.00012989,2]
[325171381,1714547452957,-260.330655,0.00012989,2]
[325171383,1714547452967,-257.3021267,0.00012989,2]
[325171385,1714547452978,-254.2735984,0.00012989,2]
[325171386,1714547452989,-251.2450701,0.00012989,2]
[325171388,1714547452999,-248.2165418,0.00012989,2]
[325171390,1714547453008,-38974.0906774,0.00012989,2]
[325171392,1714547453019,-38525.9037761,0.00012989,2]
[325171393,1714547453029,-38077.7168747,0.00012989,2]
[325171394,1714547453039,-37629.5299734,0.00012989,2]
[325171395,1714547453048,-37181.343072,0.00012989,2]
[325171396,1714547453058,-36733.1561707,0.00012989,2]
[325171397,1714547453067,-366.5765532,0.00012989,2]
[325171399,1714547453077,-362.3610652,0.00012989,2]
[325171401,1714547453086,-358.1455773,0.00012989,2]
[325171403,1714547453096,-353.9300893,0.00012989,2]
[325171405,1714547453106,-349.7146014,0.00012989,2]
[325171407,1714547453116,-345.4991134,0.00012989,2]
[325171409,1714547453126,-2213.661789,0.0001299,2]
[325171411,1714547453136,-174.93204165,0.00012998,2]
[325171413,1714547453146,-497.68349969,0.00012998,2]
[325171414,1714547453156,-155.37517047,0.00012998,2]
[325171415,1714547453166,-156.08581283,0.00012998,2]
[325171417,1714547453176,-975.57266143,0.00012998,2]
[325171419,1714547453186,-155.18648239,0.00012998,2]
[325171421,1714547453201,-2999.41731454,0.00012998,2]
[325171423,1714547453210,-155.502148,0.00012998,2]
[325171424,1714547453221,-9869.77818624,0.00012998,2]
[325171425,1714547453231,-897.95083425,0.00012998,2]
[325171426,1714547453242,-173.050116,0.00012998,2]
[325171427,1714547453252,-173.050116,0.00012998,2]
[325171428,1714547453262,-173.050116,0.00012998,2]
[325171429,1714547453272,-186.050116,0.00012998,2]
[325171431,1714547453282,-150.01,0.00012999,2]
[325171433,1714547453292,-5852.08008115,0.00012999,2]
[325171435,1714547453302,-2341918.28686261,0.00013,2]
[325171439,1714547453334,-338795.10099706,0.00013,2]
[325171442,1714547453346,-700.00465082,0.00013,2]
[325171444,1714547453358,-866.05765388,0.00013,2]
[325171446,1714547453369,-771.68306191,0.00013,2]
[325171448,1714547453382,-1209.584445,0.00013,2]
[325171451,1714547453394,-12972.72269394,0.00013,2]
[325171453,1714547453405,-388.78039596,0.00013,2]
[325171455,1714547453416,-14701.71059836,0.00013,2]
[325171460,1714547453469,-500.0,0.0001123,2]
[325171462,1714547453480,-5351.91471784,0.00013,2]
[325171470,1714547455195,-8264.23898301,0.00013,2]
[325171471,1714547455207,-1444.0,0.00013,2]
[325171472,1714547455219,-11738.29575144,0.00013,2]
[325171473,1714547455231,-795.31495658,0.00013,2]
[325171474,1714547455243,-1212.14956,0.00013,2]
[325171475,1714547455510,-500.0,0.0001123,2]
[325171476,1714547455521,-432.29164588,0.00011504,2]
[325171477,1714547455532,-67.70835412,0.00011504,2]
[325171478,1714547455542,-210.36751557,0.00011778,2]
[325171479,1714547455554,-289.63248443,0.00011778,2]
[325171480,1714547455563,-2053.14078862,0.00013,2]
[325171481,1714547455784,-500.0,0.0001123,2]
[325171482,1714547455794,-375.53,0.00011504,2]
[325171483,1714547455804,-500.0,0.00012052,2]
[325171484,1714547455813,-500.0,0.00012326,2]
[325171485,1714547455823,-500.0,0.000126,2]
[325171486,1714547455833,-501.7340345,0.00012796,2]
[325171487,1714547455842,-425.33,0.00012874,2]
[325171488,1714547455852,-2816.3294885,0.00013,2]
[325171489,1714547455865,-1621.54027574,0.00013,2]
[325171490,1714547455876,-607.64584645,0.00013,2]
[325171491,1714547455888,-590.18435049,0.00013,2]
[325171492,1714547455900,-2133.202705,0.00013,2]
[325171493,1714547455911,-58633.57500002,0.00013,2]
[325171494,1714547455923,-5884.0,0.00013,2]
[325171495,1714547455957,-14240.32602911,0.00013,2]
[325171496,1714547455969,-1784.97267767,0.00013,2]